Body Name,Document Number,Service,Type of Expenditure,Invoice Date,Supplier Name,Cost to the Council (Amount Exc VAT),Month
EREWASH BOROUGH COUNCIL,218799,Balance Sheet,ICT Works,30/04/20,ADVANCED BUSINESS SOFTWARE & SOLUTIONS LIMITED,497.51,May-20
EREWASH BOROUGH COUNCIL,218555,Treasury Management and Bank Charges,Allpay/Post Office Charges,30/04/20,ALLPAY LIMITED,"1,280.38",May-20
EREWASH BOROUGH COUNCIL,218639,Green Space,Materials/Consumables,13/05/20,AMAZON PAYMENTS UK LTD,407.99,May-20
EREWASH BOROUGH COUNCIL,218543,ICT Support Services,Office Paper,15/04/20,ANTALIS DOCUMENT SUPPLIES,241.00,May-20
EREWASH BOROUGH COUNCIL,218621,ICT Support Services,Office Paper,21/02/20,ANTALIS DOCUMENT SUPPLIES,241.00,May-20
EREWASH BOROUGH COUNCIL,218686,Homelessness,Temporary Accommodation,22/04/20,ASCOT HOTEL,280.00,May-20
EREWASH BOROUGH COUNCIL,218682,Homelessness,Temporary Accommodation,29/04/20,ASCOT HOTEL,420.00,May-20
EREWASH BOROUGH COUNCIL,218687,Homelessness,Temporary Accommodation,29/04/20,ASCOT HOTEL,280.00,May-20
EREWASH BOROUGH COUNCIL,218702,Homelessness,Temporary Accommodation,06/05/20,ASCOT HOTEL,420.00,May-20
EREWASH BOROUGH COUNCIL,218684,Homelessness,Temporary Accommodation,15/04/20,ASCOT HOTEL,420.00,May-20
EREWASH BOROUGH COUNCIL,218599,Homelessness,Temporary Accommodation,01/04/20,ASCOT HOTEL,420.00,May-20
EREWASH BOROUGH COUNCIL,218600,Homelessness,Temporary Accommodation,15/04/20,ASCOT HOTEL,280.00,May-20
EREWASH BOROUGH COUNCIL,218683,Homelessness,Temporary Accommodation,22/04/20,ASCOT HOTEL,420.00,May-20
EREWASH BOROUGH COUNCIL,218685,Homelessness,Temporary Accommodation,08/04/20,ASCOT HOTEL,420.00,May-20
EREWASH BOROUGH COUNCIL,218500,Arts Development,Special Events,27/01/20,B&B AUDIO,655.00,May-20
EREWASH BOROUGH COUNCIL,218546,ICT Support Services,Telephones,22/04/20,BRITISH TELECOMMUNICATIONS PLC,"1,846.79",May-20
EREWASH BOROUGH COUNCIL,218580,ICT Support Services,Data Lines,16/04/20,BT GLOBAL SERVICES,"6,833.65",May-20
EREWASH BOROUGH COUNCIL,218525,Occupational Health and Welfare,Occupational Health Service,01/11/19,BUPA HEALTH CLINICS,406.44,May-20
EREWASH BOROUGH COUNCIL,218527,Occupational Health and Welfare,Occupational Health Service,01/12/19,BUPA HEALTH CLINICS,406.45,May-20
EREWASH BOROUGH COUNCIL,218528,Occupational Health and Welfare,Occupational Health Service,01/08/19,BUPA HEALTH CLINICS,406.44,May-20
EREWASH BOROUGH COUNCIL,218524,Occupational Health and Welfare,Occupational Health Service,01/09/19,BUPA HEALTH CLINICS,406.44,May-20
EREWASH BOROUGH COUNCIL,218526,Occupational Health and Welfare,Occupational Health Service,01/01/20,BUPA HEALTH CLINICS,406.45,May-20
EREWASH BOROUGH COUNCIL,218549,Treasury Management and Bank Charges,Credit/Debit Card Charges,13/03/20,CAPITA,"2,099.19",May-20
EREWASH BOROUGH COUNCIL,218548,Treasury Management and Bank Charges,Credit/Debit Card Charges,14/04/20,CAPITA,"2,809.30",May-20
EREWASH BOROUGH COUNCIL,218728,Balance Sheet,Flood Hardship Fund,18/05/20,REDACTED PERSONAL DATA,500.00,May-20
EREWASH BOROUGH COUNCIL,218492,ICT Support Services,GIS Software Licences,31/03/20,CDR GROUP,"2,592.50",May-20
EREWASH BOROUGH COUNCIL,218672,Merlin Way Depot - Ilkeston,Cleaning Materials,01/04/20,CITRON HYGIENE,649.92,May-20
EREWASH BOROUGH COUNCIL,218421,Revenues and Benefits,Software Licences,27/04/20,CIVICA UK LIMITED,"7,250.00",May-20
EREWASH BOROUGH COUNCIL,218220,ICT Support Services,Software Licences,08/04/20,CIVICA UK LIMITED,"28,750.00",May-20
EREWASH BOROUGH COUNCIL,218664,Commissioned Projects,Fees Costs and Expenses,13/04/20,CLARE FLANDERS T/A JIVA MARKETING,400.00,May-20
EREWASH BOROUGH COUNCIL,218507,Property and Estates,PPM Mechanical and Equipment,07/04/20,CONCEPT ELEVATORS (UK) LTD,360.63,May-20
EREWASH BOROUGH COUNCIL,218230,Green Space,Materials/Consumables,14/04/20,CROMWELL POLYTHENE LTD,"1,024.78",May-20
EREWASH BOROUGH COUNCIL,218627,Trade Waste,Repairs and Maintenance,07/05/20,DENNIS EAGLE LTD,367.23,May-20
EREWASH BOROUGH COUNCIL,218642,Household/Residual Waste Collection,Repairs and Maintenance,12/05/20,DENNIS EAGLE LTD,393.37,May-20
EREWASH BOROUGH COUNCIL,218753,Transport Trading Account,Materials/Consumables,13/05/20,DENNIS EAGLE LTD,453.82,May-20
EREWASH BOROUGH COUNCIL,218511,Balance Sheet,Vehicles and Other Equipment,24/04/20,DENNIS EAGLE LTD,"9,632.50",May-20
EREWASH BOROUGH COUNCIL,218766,Trade Waste,Repairs and Maintenance,20/05/20,DENNIS EAGLE LTD,258.61,May-20
EREWASH BOROUGH COUNCIL,218764,Kerbside Dry Recycling Collection,Repairs and Maintenance,15/05/20,DENNIS EAGLE LTD,535.58,May-20
EREWASH BOROUGH COUNCIL,218625,Household/Residual Waste Collection,Repairs and Maintenance,07/05/20,DENNIS EAGLE LTD,921.90,May-20
EREWASH BOROUGH COUNCIL,218646,Household/Residual Waste Collection,Repairs and Maintenance,13/05/20,DENNIS EAGLE LTD,323.95,May-20
EREWASH BOROUGH COUNCIL,218774,Household/Residual Waste Collection,Repairs and Maintenance,18/05/20,DENNIS EAGLE LTD,258.75,May-20
EREWASH BOROUGH COUNCIL,218792,Balance Sheet,Payroll Collection A/c - Credit Union,26/05/20,DERBYSHIRE COMMUNITY BANK,330.00,May-20
EREWASH BOROUGH COUNCIL,218655,Personnel,Recruitment Expenses,06/05/20,DERBYSHIRE COUNTY COUNCIL...,224.00,May-20
EREWASH BOROUGH COUNCIL,218532,Balance Sheet,Grant Payments,19/03/20,DERBYSHIRE COUNTY COUNCIL...,"4,529.02",May-20
EREWASH BOROUGH COUNCIL,218531,Balance Sheet,Grant Payments,16/04/20,DERBYSHIRE COUNTY COUNCIL...,"6,320.70",May-20
EREWASH BOROUGH COUNCIL,218533,Balance Sheet,Grant Payments,22/04/20,DERBYSHIRE COUNTY COUNCIL...,"30,000.00",May-20
EREWASH BOROUGH COUNCIL,218530,Balance Sheet,Grant Payments,15/04/20,DERBYSHIRE COUNTY COUNCIL...,"5,702.60",May-20
EREWASH BOROUGH COUNCIL,218610,Balance Sheet,Payroll Collection A/c - Purchase Added Years,12/05/20,DERBYSHIRE COUNTY COUNCIL...,322.72,May-20
EREWASH BOROUGH COUNCIL,218502,Street Scene,Maintenance of Bus Shelters,28/04/20,DERBYSHIRE COUNTY COUNCIL...,594.82,May-20
EREWASH BOROUGH COUNCIL,218610,Balance Sheet,Payroll Collection A/c - Superannuation,12/05/20,DERBYSHIRE COUNTY COUNCIL...,"204,939.94",May-20
EREWASH BOROUGH COUNCIL,218637,Green Space,Materials/Consumables,15/05/20,DERBYSHIRE COUNTY COUNCIL...,"5,000.00",May-20
EREWASH BOROUGH COUNCIL,218680,Balance Sheet,Flood Hardship Fund,15/05/20,REDACTED PERSONAL DATA,500.00,May-20
EREWASH BOROUGH COUNCIL,218606,ICT Support Services,Security,22/04/20,EACS LTD,"1,734.48",May-20
EREWASH BOROUGH COUNCIL,218447,ICT Support Services,Security,22/04/20,EACS LTD,"2,367.68",May-20
EREWASH BOROUGH COUNCIL,218585,Chief Executives Office,Subscriptions,30/04/20,EAST MIDLANDS CHAMBER,"1,452.00",May-20
EREWASH BOROUGH COUNCIL,218787,Balance Sheet,Flood Hardship Fund,20/05/20,REDACTED PERSONAL DATA,500.00,May-20
EREWASH BOROUGH COUNCIL,218595,Household/Residual Waste Collection,Repairs and Maintenance,30/04/20,ENVA ENGLAND SPECIALIST WASTE LIMITED,195.00,May-20
EREWASH BOROUGH COUNCIL,218595,Street Scene,Repairs and Maintenance,30/04/20,ENVA ENGLAND SPECIALIST WASTE LIMITED,58.00,May-20
EREWASH BOROUGH COUNCIL,218595,Green Space,Repairs and Maintenance,30/04/20,ENVA ENGLAND SPECIALIST WASTE LIMITED,15.00,May-20
EREWASH BOROUGH COUNCIL,218796,Balance Sheet,Payroll Collection A/c - Labour Party Funds,26/05/20,EREWASH LABOUR GROUP,555.29,May-20
EREWASH BOROUGH COUNCIL,218656,Community Grants,Health Improvement Fund,04/05/20,EREWASH VOLUNTARY ACTION,"3,000.00",May-20
EREWASH BOROUGH COUNCIL,218591,External Audit,Audit Fees,15/04/20,ERNST & YOUNG LLP.,"10,911.00",May-20
EREWASH BOROUGH COUNCIL,218303,Civic Accommodation - Long Eaton,Window Cleaning,20/04/20,EXCEL CLEANING SOLUTIONS LIMITED,235.00,May-20
EREWASH BOROUGH COUNCIL,218651,Revenues and Benefits,Postages,14/05/20,FRAMA UK,"5,000.00",May-20
EREWASH BOROUGH COUNCIL,218583,Green Space,Contracted Services,26/04/20,GO TRAFFIC MANAGEMENT,895.00,May-20
EREWASH BOROUGH COUNCIL,218398,Homelessness,Agency Staff,15/04/20,GREENACRE RECRUITMENT,256.77,May-20
EREWASH BOROUGH COUNCIL,218280,Homelessness,Agency Staff,08/04/20,GREENACRE RECRUITMENT,"1,011.05",May-20
EREWASH BOROUGH COUNCIL,218398,Homelessness,Agency Staff,15/04/20,GREENACRE RECRUITMENT,401.11,May-20
EREWASH BOROUGH COUNCIL,218499,Green Space,Materials/Consumables,29/04/20,GROUNDSMAN TOOLS AND SUPPLIES LLP,592.56,May-20
EREWASH BOROUGH COUNCIL,218607,Revenues and Benefits,Software Licences,01/02/20,HBINFO LTD,550.00,May-20
EREWASH BOROUGH COUNCIL,218791,Balance Sheet,Payroll Collection A/c - Attachment Orders,26/05/20,HMCTS,269.44,May-20
EREWASH BOROUGH COUNCIL,218675,Balance Sheet,Apprenticeship Levy,19/05/20,HMRC CUMBERNAULD,"3,261.00",May-20
EREWASH BOROUGH COUNCIL,218675,Balance Sheet,Payroll Collection A/c - Income Tax,19/05/20,HMRC CUMBERNAULD,"64,941.89",May-20
EREWASH BOROUGH COUNCIL,218797,Balance Sheet,Payroll Collection A/c - Income Tax,26/05/20,HMRC CUMBERNAULD,270.00,May-20
EREWASH BOROUGH COUNCIL,218675,Personnel,Apprenticeship Levy,19/05/20,HMRC CUMBERNAULD,"-1,250.00",May-20
EREWASH BOROUGH COUNCIL,218675,Balance Sheet,Payroll Collection A/c - National Insurance,19/05/20,HMRC CUMBERNAULD,"98,535.06",May-20
EREWASH BOROUGH COUNCIL,218675,Balance Sheet,Payroll Collection A/c - Recovery of Student Loan,19/05/20,HMRC CUMBERNAULD,987.00,May-20
EREWASH BOROUGH COUNCIL,218730,Council Tax Collection,Fees Costs and Expenses,13/05/20,INFORM CPI LTD,336.00,May-20
EREWASH BOROUGH COUNCIL,218729,Council Tax Collection,Fees Costs and Expenses,11/03/20,INFORM CPI LTD,240.00,May-20
EREWASH BOROUGH COUNCIL,218562,Non-domestic Rates Collection,Fees Costs and Expenses,22/04/20,INFORM CPI LTD,"15,560.00",May-20
EREWASH BOROUGH COUNCIL,218592,Green Space,Repairs and Maintenance,30/04/20,J COATES (GARAGE SERVICES) LTD,72.00,May-20
EREWASH BOROUGH COUNCIL,218592,Household/Residual Waste Collection,Repairs and Maintenance,30/04/20,J COATES (GARAGE SERVICES) LTD,404.15,May-20
EREWASH BOROUGH COUNCIL,218497,Homelessness,Agency Staff,28/04/20,JAMES ANDREWS RECRUITMENT SOLUTIONS,"1,258.00",May-20
EREWASH BOROUGH COUNCIL,218498,Homelessness,Agency Staff,21/04/20,JAMES ANDREWS RECRUITMENT SOLUTIONS,"1,037.00",May-20
EREWASH BOROUGH COUNCIL,218677,General Entertainment,Lettings Misc,13/05/20,JAMES MELLORS LTD,500.00,May-20
EREWASH BOROUGH COUNCIL,218784,Balance Sheet,Flood Hardship Fund,21/05/20,REDACTED PERSONAL DATA,500.00,May-20
EREWASH BOROUGH COUNCIL,218522,ICT Support Services,Maintenance of Equipment,04/05/20,JIGSAW BUSINESS NETWORKS LIMITED,"1,840.00",May-20
EREWASH BOROUGH COUNCIL,218338,Street Scene,Repairs and Maintenance,24/04/20,JOHNSTON SWEEPERS LTD,918.53,May-20
EREWASH BOROUGH COUNCIL,218350,Green Space,Repairs and Maintenance,20/04/20,JOHNSTON SWEEPERS LTD,204.21,May-20
EREWASH BOROUGH COUNCIL,218350,Street Scene,Repairs and Maintenance,20/04/20,JOHNSTON SWEEPERS LTD,10.82,May-20
EREWASH BOROUGH COUNCIL,218578,Balance Sheet,Childcare Salary Sacrifice-Kiddie Vouchers,05/05/20,KIDDIVOUCHERS LTD,"1,130.19",May-20
EREWASH BOROUGH COUNCIL,218249,Reprographics,Printing and Stationery,09/04/20,KINGSFIELD COMPUTER PRODUCTS LIMITED,624.49,May-20
EREWASH BOROUGH COUNCIL,218321,ICT Support Services,Equipment Leasing Charge,16/04/20,KYOCERA DOCUMENT SOLUTIONS (UK) LTD,"2,338.46",May-20
EREWASH BOROUGH COUNCIL,218193,Legal Services,"Stamp Duty,Search and Legal Fees",08/04/20,LAWYERS IN LOCAL GOVERNMENT,260.00,May-20
EREWASH BOROUGH COUNCIL,218679,Balance Sheet,Flood Hardship Fund,15/05/20,REDACTED PERSONAL DATA,500.00,May-20
EREWASH BOROUGH COUNCIL,218807,Front Line Support Services,Printing and Stationery,04/05/20,LLOYDS BANK,44.28,May-20
EREWASH BOROUGH COUNCIL,218805,HLF Victoria Park Restoration,General Publicity and Promotion,02/04/20,LLOYDS BANK,33.13,May-20
EREWASH BOROUGH COUNCIL,218807,Green Space,Training,04/05/20,LLOYDS BANK,40.00,May-20
EREWASH BOROUGH COUNCIL,218739,Treasury Management and Bank Charges,Unpaid Cheque Fees,14/04/20,LLOYDS BANK,151.80,May-20
EREWASH BOROUGH COUNCIL,218805,Civic Duties Hospitality,Photography,02/04/20,LLOYDS BANK,21.99,May-20
EREWASH BOROUGH COUNCIL,218805,Green Space,Road Taxes,02/04/20,LLOYDS BANK,167.50,May-20
EREWASH BOROUGH COUNCIL,218805,Revenues and Benefits,Postages,02/04/20,LLOYDS BANK,11.30,May-20
EREWASH BOROUGH COUNCIL,218739,Treasury Management and Bank Charges,Lloyds Bank Charges for Debits and Credits,14/04/20,LLOYDS BANK,143.85,May-20
EREWASH BOROUGH COUNCIL,218805,Street Scene,Repairs and Maintenance,02/04/20,LLOYDS BANK,134.00,May-20
EREWASH BOROUGH COUNCIL,218805,Development Control - Fee Earning,General Equipment,02/04/20,LLOYDS BANK,239.89,May-20
EREWASH BOROUGH COUNCIL,218807,Reprographics,Printing and Stationery,04/05/20,LLOYDS BANK,205.47,May-20
EREWASH BOROUGH COUNCIL,218807,Long Service Awards,General Equipment,04/05/20,LLOYDS BANK,-45.00,May-20
EREWASH BOROUGH COUNCIL,218805,Operational Non Leisure Departmental,General Equipment,02/04/20,LLOYDS BANK,16.90,May-20
EREWASH BOROUGH COUNCIL,218805,Property and Estates,Printing and Stationery,02/04/20,LLOYDS BANK,2.10,May-20
EREWASH BOROUGH COUNCIL,218807,Operational Non Leisure Departmental,Printing and Stationery,04/05/20,LLOYDS BANK,15.40,May-20
EREWASH BOROUGH COUNCIL,218805,Homelessness,Temporary Accommodation,02/04/20,LLOYDS BANK,33.99,May-20
EREWASH BOROUGH COUNCIL,218805,"Sport, Health and Physical Activity - Alliance",Fees Costs and Expenses,02/04/20,LLOYDS BANK,709.37,May-20
EREWASH BOROUGH COUNCIL,218805,Green Space,Materials/Consumables,02/04/20,LLOYDS BANK,7.99,May-20
EREWASH BOROUGH COUNCIL,218805,Food Inspection and Hygiene,Materials/Consumables,02/04/20,LLOYDS BANK,83.13,May-20
EREWASH BOROUGH COUNCIL,218805,Front Line Support Services,Printing and Stationery,02/04/20,LLOYDS BANK,62.28,May-20
EREWASH BOROUGH COUNCIL,218739,Treasury Management and Bank Charges,Lloyds BACS Services,14/04/20,LLOYDS BANK,337.44,May-20
EREWASH BOROUGH COUNCIL,218805,Community Services,General Equipment,02/04/20,LLOYDS BANK,40.31,May-20
EREWASH BOROUGH COUNCIL,218805,Long Service Awards,General Equipment,02/04/20,LLOYDS BANK,45.00,May-20
EREWASH BOROUGH COUNCIL,218805,Transport Trading Account,Materials/Consumables,02/04/20,LLOYDS BANK,102.73,May-20
EREWASH BOROUGH COUNCIL,218805,Transport Trading Account,Printing and Stationery,02/04/20,LLOYDS BANK,93.90,May-20
EREWASH BOROUGH COUNCIL,218805,ICT Support Services,Software Licences,02/04/20,LLOYDS BANK,97.64,May-20
EREWASH BOROUGH COUNCIL,218805,Democratic Representation,Conference Fees/Seminars,02/04/20,LLOYDS BANK,276.00,May-20
EREWASH BOROUGH COUNCIL,218805,ICT Support Services,General Equipment,02/04/20,LLOYDS BANK,387.77,May-20
EREWASH BOROUGH COUNCIL,218807,Green Space,Materials/Consumables,04/05/20,LLOYDS BANK,199.88,May-20
EREWASH BOROUGH COUNCIL,218482,Green Space,Tyres,30/04/20,LODGE TYRE COMPANY LTD,545.00,May-20
EREWASH BOROUGH COUNCIL,218482,Dog Control,Tyres,30/04/20,LODGE TYRE COMPANY LTD,48.00,May-20
EREWASH BOROUGH COUNCIL,218482,Neighbourhood Wardens,Tyres,30/04/20,LODGE TYRE COMPANY LTD,15.00,May-20
EREWASH BOROUGH COUNCIL,218482,Household/Residual Waste Collection,Tyres,30/04/20,LODGE TYRE COMPANY LTD,"2,457.50",May-20
EREWASH BOROUGH COUNCIL,218482,Kerbside Dry Recycling Collection,Tyres,30/04/20,LODGE TYRE COMPANY LTD,420.00,May-20
EREWASH BOROUGH COUNCIL,218482,Trade Waste,Tyres,30/04/20,LODGE TYRE COMPANY LTD,35.00,May-20
EREWASH BOROUGH COUNCIL,218678,Balance Sheet,Flood Hardship Fund,15/05/20,REDACTED PERSONAL DATA,500.00,May-20
EREWASH BOROUGH COUNCIL,218614,Kerbside Dry Recycling Collection,Protective Clothing,22/04/20,MAIN MAN SUPPLIES LTD,229.99,May-20
EREWASH BOROUGH COUNCIL,218614,Household/Residual Waste Collection,Protective Clothing,22/04/20,MAIN MAN SUPPLIES LTD,230.00,May-20
EREWASH BOROUGH COUNCIL,218605,Green Space,Materials/Consumables,05/05/20,MANSFIELD SAND COMPANY LTD,423.00,May-20
EREWASH BOROUGH COUNCIL,218786,Balance Sheet,Flood Hardship Fund,21/05/20,REDACTED PERSONAL DATA,500.00,May-20
EREWASH BOROUGH COUNCIL,218238,Building Control - Fee Earning,Agency Staff,09/04/20,MATCHTECH GROUP (UK) LIMITED,"2,475.00",May-20
EREWASH BOROUGH COUNCIL,218582,Property and Estates,Reactive Maintenance,05/05/20,MDB PLUMBING (NOTTM) LTD,231.14,May-20
EREWASH BOROUGH COUNCIL,218323,Green Space,Contracted Services,21/04/20,MDB PLUMBING (NOTTM) LTD,"2,014.68",May-20
EREWASH BOROUGH COUNCIL,218584,Property and Estates,PPM Mechanical and Equipment,05/05/20,MDB PLUMBING (NOTTM) LTD,508.73,May-20
EREWASH BOROUGH COUNCIL,218265,Property and Estates,Repairs and Maintenance,16/04/20,MDB PLUMBING (NOTTM) LTD,334.82,May-20
EREWASH BOROUGH COUNCIL,218579,Occupational Health and Welfare,Occupational Health Service,07/04/20,MEDIGOLD HEALTH CONSULTANCY LIMITED,"1,900.50",May-20
EREWASH BOROUGH COUNCIL,218496,Car Parking,Contracted Services,22/04/20,METRIC GROUP LTD,"1,464.75",May-20
EREWASH BOROUGH COUNCIL,218561,Household/Residual Waste Collection,Bins,28/04/20,MGB PLASTICS LTD,"7,584.00",May-20
EREWASH BOROUGH COUNCIL,218523,Insurances,Uninsured Risks,01/05/20,MUNICIPAL MUTUAL INSURANCE LTD,713.00,May-20
EREWASH BOROUGH COUNCIL,218483,Car Parking,Planned Preventative Maintenance,01/05/20,N B CONSTRUCTION,"1,084.38",May-20
EREWASH BOROUGH COUNCIL,218556,Car Parking,Reactive Maintenance,07/05/20,N B CONSTRUCTION,"3,966.50",May-20
EREWASH BOROUGH COUNCIL,218746,Green Space,Contracted Services,22/05/20,N B CONSTRUCTION,"2,400.00",May-20
EREWASH BOROUGH COUNCIL,218590,Democratic Representation,Subscription - National Assoc of Councillors,05/05/20,NATIONAL ASSOCIATIONS OF COUNCILLORS,752.00,May-20
EREWASH BOROUGH COUNCIL,218501,Balance Sheet,Accountancy Software Licence Payments in Advance,28/04/20,ORACLE CORPORATION UK LTD,"11,808.89",May-20
EREWASH BOROUGH COUNCIL,218422,Balance Sheet,Accountancy Software Licence Payments in Advance,24/04/20,ORACLE CORPORATION UK LTD,"6,657.13",May-20
EREWASH BOROUGH COUNCIL,218640,Balance Sheet,Building Works,15/05/20,PARKIN CONTRACTORS LTD,130.88,May-20
EREWASH BOROUGH COUNCIL,218640,Car Parking,Planned Preventative Maintenance,15/05/20,PARKIN CONTRACTORS LTD,"7,326.05",May-20
EREWASH BOROUGH COUNCIL,218272,Leisure Contract,Contracted Services,20/04/20,PARKWOOD LEISURE LTD,"26,733.42",May-20
EREWASH BOROUGH COUNCIL,218450,Green Space,Materials/Consumables,20/04/20,PENTLAND PLANTS LTD,327.60,May-20
EREWASH BOROUGH COUNCIL,218671,Green Space,Materials/Consumables,13/04/20,PENTLAND PLANTS LTD,"2,177.24",May-20
EREWASH BOROUGH COUNCIL,218670,Green Space,Materials/Consumables,07/04/20,PENTLAND PLANTS LTD,"3,476.06",May-20
EREWASH BOROUGH COUNCIL,218472,Homelessness,Contracted Services,10/04/20,PEOPLE POTENTIAL POSSIBILITIES,"13,829.50",May-20
EREWASH BOROUGH COUNCIL,218472,Homelessness,Contracted Services,10/04/20,PEOPLE POTENTIAL POSSIBILITIES,"13,214.33",May-20
EREWASH BOROUGH COUNCIL,218613,Homelessness,Contracted Services,29/04/20,PEOPLE POTENTIAL POSSIBILITIES,"13,829.50",May-20
EREWASH BOROUGH COUNCIL,218613,Homelessness,Contracted Services,29/04/20,PEOPLE POTENTIAL POSSIBILITIES,"13,214.33",May-20
EREWASH BOROUGH COUNCIL,218174,Balance Sheet,ICT Software Licence Payment in Advance,09/04/20,PHOENIX SOFTWARE LTD,"6,736.95",May-20
EREWASH BOROUGH COUNCIL,218187,Balance Sheet,ICT Software Licence Payment in Advance,08/04/20,PHOENIX SOFTWARE LTD,"51,197.78",May-20
EREWASH BOROUGH COUNCIL,218188,Balance Sheet,ICT Software Licence Payment in Advance,08/04/20,PHOENIX SOFTWARE LTD,"23,022.87",May-20
EREWASH BOROUGH COUNCIL,218488,Green Space,Repairs and Maintenance,30/04/20,PLATTS HARRIS LIMITED,445.09,May-20
EREWASH BOROUGH COUNCIL,218790,Balance Sheet,Payroll Collection A/c - AVCS,26/05/20,PRUDENTIAL,"5,122.50",May-20
EREWASH BOROUGH COUNCIL,218537,Performance Management,Consultants Fees,30/04/20,Q2 LIMITED,"2,310.00",May-20
EREWASH BOROUGH COUNCIL,218536,Performance Management,Consultants Fees,30/04/20,Q2 LIMITED,"1,155.00",May-20
EREWASH BOROUGH COUNCIL,218720,CCTV - Ilkeston and Long Eaton,Subscriptions,29/04/20,QUADRANT SECURITY GROUP,"2,790.00",May-20
EREWASH BOROUGH COUNCIL,218560,Transport Trading Account,Agency Staff,27/04/20,QUESTECH RECRUITMENT LTD,906.50,May-20
EREWASH BOROUGH COUNCIL,218558,Transport Trading Account,Agency Staff,05/05/20,QUESTECH RECRUITMENT LTD,906.50,May-20
EREWASH BOROUGH COUNCIL,218628,Transport Trading Account,Agency Staff,12/05/20,QUESTECH RECRUITMENT LTD,784.00,May-20
EREWASH BOROUGH COUNCIL,218776,Transport Trading Account,Agency Staff,18/05/20,QUESTECH RECRUITMENT LTD,906.50,May-20
EREWASH BOROUGH COUNCIL,218624,Revenues and Benefits,Postages,06/05/20,ROYAL MAIL GROUP LTD.,333.00,May-20
EREWASH BOROUGH COUNCIL,218681,Revenues and Benefits,Postages,13/05/20,ROYAL MAIL GROUP LTD.,"1,990.76",May-20
EREWASH BOROUGH COUNCIL,218623,Revenues and Benefits,Postages,06/05/20,ROYAL MAIL GROUP LTD.,"1,719.34",May-20
EREWASH BOROUGH COUNCIL,218817,Balance Sheet,Cycle Loans to Employees,02/04/20,REDACTED PERSONAL DATA,259.99,May-20
EREWASH BOROUGH COUNCIL,218634,Street Scene,Repairs and Maintenance,29/04/20,SCARAB SWEEPERS LTD,460.56,May-20
EREWASH BOROUGH COUNCIL,218569,Cemeteries,Metered Water,01/05/20,SCOTTISH WATER BUSINESS STREAM LIMITED,158.92,May-20
EREWASH BOROUGH COUNCIL,218569,Rutland Sports Park,Metered Water,01/05/20,SCOTTISH WATER BUSINESS STREAM LIMITED,"1,469.01",May-20
EREWASH BOROUGH COUNCIL,218569,Cotmanhay Pavilion,Unmetered Water,01/05/20,SCOTTISH WATER BUSINESS STREAM LIMITED,39.15,May-20
EREWASH BOROUGH COUNCIL,218569,Sandiacre Friesland Sports Centre,Metered Water,01/05/20,SCOTTISH WATER BUSINESS STREAM LIMITED,502.22,May-20
EREWASH BOROUGH COUNCIL,218569,Allotments,Metered Water,01/05/20,SCOTTISH WATER BUSINESS STREAM LIMITED,-685.65,May-20
EREWASH BOROUGH COUNCIL,218674,Allotments,Metered Water,13/05/20,SCOTTISH WATER BUSINESS STREAM LIMITED,419.35,May-20
EREWASH BOROUGH COUNCIL,218569,Green Space,Metered Water,01/05/20,SCOTTISH WATER BUSINESS STREAM LIMITED,"1,288.13",May-20
EREWASH BOROUGH COUNCIL,218569,Car Parking,Unmetered Water,01/05/20,SCOTTISH WATER BUSINESS STREAM LIMITED,"22,056.43",May-20
EREWASH BOROUGH COUNCIL,218569,Shopmobility - Ilkeston,Metered Water,01/05/20,SCOTTISH WATER BUSINESS STREAM LIMITED,78.96,May-20
EREWASH BOROUGH COUNCIL,218569,Civic Accommodation - Long Eaton,Metered Water,01/05/20,SCOTTISH WATER BUSINESS STREAM LIMITED,263.54,May-20
EREWASH BOROUGH COUNCIL,218569,Public Conveniences,Metered Water,01/05/20,SCOTTISH WATER BUSINESS STREAM LIMITED,955.05,May-20
EREWASH BOROUGH COUNCIL,218569,Merlin Way Depot - Ilkeston,Metered Water,01/05/20,SCOTTISH WATER BUSINESS STREAM LIMITED,"1,838.59",May-20
EREWASH BOROUGH COUNCIL,218569,Shopmobility - Long Eaton,Metered Water,01/05/20,SCOTTISH WATER BUSINESS STREAM LIMITED,24.49,May-20
EREWASH BOROUGH COUNCIL,218569,Ilkeston Market,Unmetered Water,01/05/20,SCOTTISH WATER BUSINESS STREAM LIMITED,"1,874.19",May-20
EREWASH BOROUGH COUNCIL,218569,Abbotsford Community Centre,Unmetered Water,01/05/20,SCOTTISH WATER BUSINESS STREAM LIMITED,206.01,May-20
EREWASH BOROUGH COUNCIL,218569,Civic Accommodation - Ilkeston,Metered Water,01/05/20,SCOTTISH WATER BUSINESS STREAM LIMITED,300.76,May-20
EREWASH BOROUGH COUNCIL,218569,Long Eaton Market,Metered Water,01/05/20,SCOTTISH WATER BUSINESS STREAM LIMITED,331.31,May-20
EREWASH BOROUGH COUNCIL,218785,Balance Sheet,Flood Hardship Fund,21/05/20,REDACTED PERSONAL DATA,500.00,May-20
EREWASH BOROUGH COUNCIL,218649,Democratic Representation,Communications costs,14/05/20,SNOW ELK PRODUCTIONS,400.00,May-20
EREWASH BOROUGH COUNCIL,218301,ICT Support Services,Security,20/04/20,SOFTCAT LTD,"15,430.10",May-20
EREWASH BOROUGH COUNCIL,218650,ICT Support Services,Security,26/03/20,SOFTCAT LTD,902.16,May-20
EREWASH BOROUGH COUNCIL,218476,Green Space,Contracted Services,23/04/20,T H HEATH  CONTRACTS  LTD,708.00,May-20
EREWASH BOROUGH COUNCIL,218506,Green Space,Contracted Services,28/04/20,T H HEATH  CONTRACTS  LTD,697.59,May-20
EREWASH BOROUGH COUNCIL,218505,Green Space,Contracted Services,23/04/20,T H HEATH  CONTRACTS  LTD,"5,266.64",May-20
EREWASH BOROUGH COUNCIL,218773,Revenues and Benefits,Software Licences,01/04/20,TAMESIDE METROPOLITAN BOROUGH,"1,600.00",May-20
EREWASH BOROUGH COUNCIL,218218,Property and Estates,Alarms Planned Maintenence,14/04/20,TECSERV UK,937.67,May-20
EREWASH BOROUGH COUNCIL,218489,ICT Support Services,Telephones,01/05/20,TELEPHONE TECHNOLOGY LTD,210.00,May-20
EREWASH BOROUGH COUNCIL,218357,Kerbside Dry Recycling Collection,Repairs and Maintenance,15/04/20,TERBERG MATEC UK,6.76,May-20
EREWASH BOROUGH COUNCIL,218357,Trade Waste,Repairs and Maintenance,15/04/20,TERBERG MATEC UK,521.60,May-20
EREWASH BOROUGH COUNCIL,218364,Household/Residual Waste Collection,Repairs and Maintenance,08/04/20,TERBERG MATEC UK,"4,072.03",May-20
EREWASH BOROUGH COUNCIL,218593,Household/Residual Waste Collection,Repairs and Maintenance,28/04/20,TERBERG MATEC UK,561.75,May-20
EREWASH BOROUGH COUNCIL,218626,Kerbside Dry Recycling Collection,Repairs and Maintenance,10/03/20,TERBERG MATEC UK,"1,402.26",May-20
EREWASH BOROUGH COUNCIL,218598,Homelessness,Temporary Accommodation,27/04/20,THE CLARENCE HOTEL,300.00,May-20
EREWASH BOROUGH COUNCIL,218705,Homelessness,Temporary Accommodation,04/05/20,THE CLARENCE HOTEL,350.00,May-20
EREWASH BOROUGH COUNCIL,218597,Homelessness,Temporary Accommodation,27/04/20,THE CLARENCE HOTEL,350.00,May-20
EREWASH BOROUGH COUNCIL,218707,Homelessness,Temporary Accommodation,04/05/20,THE CLARENCE HOTEL,350.00,May-20
EREWASH BOROUGH COUNCIL,218706,Homelessness,Temporary Accommodation,27/04/20,THE CLARENCE HOTEL,350.00,May-20
EREWASH BOROUGH COUNCIL,218737,Green Space,Fuel,03/05/20,THE RIGHT FUELCARD COMPANY LTD,415.83,May-20
EREWASH BOROUGH COUNCIL,218554,Green Space,Fuel,26/04/20,THE RIGHT FUELCARD COMPANY LTD,415.72,May-20
EREWASH BOROUGH COUNCIL,218553,Green Space,Fuel,19/04/20,THE RIGHT FUELCARD COMPANY LTD,316.03,May-20
EREWASH BOROUGH COUNCIL,218508,Trees Hedges and Local Nature Reserves,Contracted Services,14/02/20,TOM RICHARDS TREE SERVICES,700.00,May-20
EREWASH BOROUGH COUNCIL,218509,Trees Hedges and Local Nature Reserves,Contracted Services,26/11/19,TOM RICHARDS TREE SERVICES,400.00,May-20
EREWASH BOROUGH COUNCIL,218354,Shopmobility - Long Eaton,Electricity,21/04/20,TOTAL GAS & POWER LTD,283.52,May-20
EREWASH BOROUGH COUNCIL,218354,Watercourse Maintenance,Electricity,21/04/20,TOTAL GAS & POWER LTD,37.25,May-20
EREWASH BOROUGH COUNCIL,218354,Green Space,Electricity,21/04/20,TOTAL GAS & POWER LTD,"1,213.27",May-20
EREWASH BOROUGH COUNCIL,218354,Ilkeston Market,Electricity,21/04/20,TOTAL GAS & POWER LTD,917.29,May-20
EREWASH BOROUGH COUNCIL,218354,CCTV - Ilkeston and Long Eaton,Electricity,21/04/20,TOTAL GAS & POWER LTD,301.06,May-20
EREWASH BOROUGH COUNCIL,218354,Public Clocks,Electricity,21/04/20,TOTAL GAS & POWER LTD,20.21,May-20
EREWASH BOROUGH COUNCIL,218354,Erewash Museum,Electricity,21/04/20,TOTAL GAS & POWER LTD,369.26,May-20
EREWASH BOROUGH COUNCIL,218320,Civic Accommodation - Ilkeston,Electricity,21/04/20,TOTAL GAS & POWER LTD,"1,357.31",May-20
EREWASH BOROUGH COUNCIL,218320,Sandiacre Friesland Sports Centre,Electricity,21/04/20,TOTAL GAS & POWER LTD,617.74,May-20
EREWASH BOROUGH COUNCIL,218354,Civic Accommodation - Long Eaton,Electricity,21/04/20,TOTAL GAS & POWER LTD,30.71,May-20
EREWASH BOROUGH COUNCIL,218320,Green Space,Electricity,21/04/20,TOTAL GAS & POWER LTD,703.80,May-20
EREWASH BOROUGH COUNCIL,218320,Civic Accommodation - Long Eaton,Electricity,21/04/20,TOTAL GAS & POWER LTD,"1,833.09",May-20
EREWASH BOROUGH COUNCIL,218354,Shopmobility - Ilkeston,Electricity,21/04/20,TOTAL GAS & POWER LTD,244.09,May-20
EREWASH BOROUGH COUNCIL,218354,Bridge Arches - Long Eaton,Electricity,21/04/20,TOTAL GAS & POWER LTD,46.19,May-20
EREWASH BOROUGH COUNCIL,218354,Long Eaton Market,Electricity,21/04/20,TOTAL GAS & POWER LTD,50.88,May-20
EREWASH BOROUGH COUNCIL,218354,Public Conveniences,Electricity,21/04/20,TOTAL GAS & POWER LTD,424.18,May-20
EREWASH BOROUGH COUNCIL,218354,Belvoir Close Maintenance,Electricity,21/04/20,TOTAL GAS & POWER LTD,26.05,May-20
EREWASH BOROUGH COUNCIL,218320,Merlin Way Depot - Ilkeston,Electricity,21/04/20,TOTAL GAS & POWER LTD,"2,330.54",May-20
EREWASH BOROUGH COUNCIL,218354,Car Parking,Electricity,21/04/20,TOTAL GAS & POWER LTD,676.07,May-20
EREWASH BOROUGH COUNCIL,218320,Long Eaton Market,Electricity,21/04/20,TOTAL GAS & POWER LTD,152.66,May-20
EREWASH BOROUGH COUNCIL,218510,Play Areas,Materials/Consumables,28/04/20,TRADE PARTNERS INTERNATIONAL LTD,280.00,May-20
EREWASH BOROUGH COUNCIL,218647,Operational Non Leisure Departmental,Consultants Fees,31/03/20,TROWERS & HAMLINS LLP,"1,066.00",May-20
EREWASH BOROUGH COUNCIL,218477,Green Space,Materials/Consumables,24/04/20,TUDOR ENVIRONMENTAL,262.50,May-20
EREWASH BOROUGH COUNCIL,218334,Green Space,Materials/Consumables,23/04/20,TUDOR ENVIRONMENTAL,229.90,May-20
EREWASH BOROUGH COUNCIL,218619,Homelessness,Temporary Accommodation,03/05/20,TUDOR LODGE HOTEL,350.00,May-20
EREWASH BOROUGH COUNCIL,218778,Homelessness,Temporary Accommodation,10/05/20,TUDOR LODGE HOTEL,291.67,May-20
EREWASH BOROUGH COUNCIL,218618,Homelessness,Temporary Accommodation,28/04/20,TUDOR LODGE HOTEL,350.00,May-20
EREWASH BOROUGH COUNCIL,218777,Homelessness,Temporary Accommodation,10/05/20,TUDOR LODGE HOTEL,350.00,May-20
EREWASH BOROUGH COUNCIL,218620,Homelessness,Temporary Accommodation,03/05/20,TUDOR LODGE HOTEL,333.34,May-20
EREWASH BOROUGH COUNCIL,218704,Homelessness,Homelessness-Lease Properties,22/04/20,TUNTUM HOUSING ASSOCIATION.,928.83,May-20
EREWASH BOROUGH COUNCIL,218795,Balance Sheet,Payroll Collection A/c - Trade Union Subscriptions,26/05/20,UNISON,485.40,May-20
EREWASH BOROUGH COUNCIL,218795,Payments,Commission,26/05/20,UNISON,-7.28,May-20
EREWASH BOROUGH COUNCIL,218717,Homelessness,Temporary Accommodation,23/04/20,VICTORIA PARK HOTEL,552.00,May-20
EREWASH BOROUGH COUNCIL,218699,Homelessness,Temporary Accommodation,28/04/20,VICTORIA PARK HOTEL,759.00,May-20
EREWASH BOROUGH COUNCIL,218701,Homelessness,Temporary Accommodation,05/05/20,VICTORIA PARK HOTEL,"1,242.00",May-20
EREWASH BOROUGH COUNCIL,218712,Homelessness,Temporary Accommodation,30/04/20,VICTORIA PARK HOTEL,792.33,May-20
EREWASH BOROUGH COUNCIL,218711,Homelessness,Temporary Accommodation,23/04/20,VICTORIA PARK HOTEL,"1,239.00",May-20
EREWASH BOROUGH COUNCIL,218700,Homelessness,Temporary Accommodation,28/04/20,VICTORIA PARK HOTEL,"1,888.00",May-20
EREWASH BOROUGH COUNCIL,218715,Homelessness,Temporary Accommodation,11/05/20,VICTORIA PARK HOTEL,552.00,May-20
EREWASH BOROUGH COUNCIL,218718,Homelessness,Temporary Accommodation,23/04/20,VICTORIA PARK HOTEL,236.00,May-20
EREWASH BOROUGH COUNCIL,218714,Homelessness,Temporary Accommodation,11/05/20,VICTORIA PARK HOTEL,345.00,May-20
EREWASH BOROUGH COUNCIL,218716,Homelessness,Temporary Accommodation,28/04/20,VICTORIA PARK HOTEL,345.00,May-20
EREWASH BOROUGH COUNCIL,218779,Homelessness,Temporary Accommodation,11/05/20,VICTORIA PARK HOTEL,345.00,May-20
EREWASH BOROUGH COUNCIL,218780,Homelessness,Temporary Accommodation,12/05/20,VICTORIA PARK HOTEL,447.33,May-20
EREWASH BOROUGH COUNCIL,218491,Green Space,Materials/Consumables,30/04/20,WEPACK LTD,"1,387.68",May-20
EREWASH BOROUGH COUNCIL,218564,Non-domestic Rates Collection,Fees Costs and Expenses,09/04/20,WILKIN CHAPMAN LLP,"1,159.00",May-20
EREWASH BOROUGH COUNCIL,218731,Council Tax Collection,Fees Costs and Expenses,04/05/20,WILKIN CHAPMAN LLP,600.00,May-20
EREWASH BOROUGH COUNCIL,218565,Non-domestic Rates Collection,Fees Costs and Expenses,10/03/20,WILKIN CHAPMAN LLP,"2,107.00",May-20
EREWASH BOROUGH COUNCIL,218382,Kerbside Dry Recycling Collection,Agency Staff,11/04/20,WORKCHAIN LTD,581.57,May-20
EREWASH BOROUGH COUNCIL,218382,Street Scene,Agency Staff,11/04/20,WORKCHAIN LTD,872.35,May-20
EREWASH BOROUGH COUNCIL,218545,ICT Support Services,Equipment Leasing Charge,11/04/20,XEROX UK LTD.,311.93,May-20
EREWASH BOROUGH COUNCIL,218449,ICT Support Services,Data Lines,26/04/20,ZEN INTERNET LIMITED,"1,367.01",May-20
EREWASH BOROUGH COUNCIL,218588,Insurances - (Corporate matters only),Insurance - General,01/05/20,ZURICH MUNICIPAL,"14,819.79",May-20
EREWASH BOROUGH COUNCIL,218587,Insurances - (Corporate matters only),Insurance - General,01/05/20,ZURICH MUNICIPAL,"1,541.76",May-20
